{"text_format":"2","workbook":"xlsx","n_sheets":21,"sheets":["Ktg összesítő","Ösztöndíj összesítő","\"A\" KERET - ALAPK. HALLGATÓK","\"A\" KERET - MESTERK. HALLGATÓK","\"B\" KERET - DOKTORI","\"C\" KERET - \"TUDOMÁNNYAL FEL!\"","BOLYAI+","\"TEHETSÉGGEL FEL!\"","51. Anyagköltségek","52. Igénybe vett szolg.","53. Egyéb szolgáltatások","54-56.személyi+járulék-lebony.","11. Immateriális javak","13. Műszaki berend.","14. Egyéb berendezések","Általános-51.Anyagkölt","Általános-52.Igénybe vett","támogatás típusai","nyilatkozat kamatról","nyilatkozat függetlenségre"," lemondó nyilatkozat"],"not_rendered":{"charts":0,"images":0,"macros":0,"external_links":0,"defined_names":18,"comments":0,"pivot_tables":0},"unopened":[],"bounds":{"document_bytes":16777216,"sheet_cells":100000,"run_cost":"one","rows_first":2000,"rows_last":500,"rows_between":2000,"halvings":0,"cell_chars":16384,"cell_head_chars":4096},"cells_cut":0,"cells_raw":0,"read":"whole","date_system":"1900"}

{"sheet":"Ktg összesítő","index":0,"n_rows":53,"n_cols":4,"rows_kept":53,"cut":false,"hidden":false,"merged":[[38,3,38,5],[32,3,32,5],[33,3,33,5],[34,3,34,5],[35,3,35,5],[36,3,36,5],[22,0,27,0],[28,0,38,0],[24,1,24,2],[25,1,25,2],[26,1,26,2],[27,1,27,2],[28,1,28,2],[29,1,29,2],[30,1,30,2],[31,1,31,2],[32,1,32,2],[33,1,33,2],[34,1,34,2],[35,1,35,2],[21,3,21,5],[23,1,23,2],[37,1,37,2],[38,1,38,2],[36,1,36,2],[22,3,22,5],[23,3,23,5],[24,3,24,5],[25,3,25,5],[26,3,26,5],[27,3,27,5],[28,3,28,5],[29,3,29,5],[30,3,30,5],[31,3,31,5],[37,3,37,5],[45,4,45,5],[50,0,50,4],[39,3,39,5],[13,0,13,2],[13,3,13,5],[14,0,14,2],[14,3,14,5],[15,0,15,2],[15,3,15,5],[16,0,16,2],[16,3,16,5],[18,3,19,5],[19,0,19,1],[20,1,20,2],[18,0,18,1],[20,3,20,5],[52,0,52,4],[39,0,39,2],[42,0,42,4],[45,0,45,2],[0,0,0,5],[1,0,1,5],[4,0,4,5],[6,0,6,5],[7,0,7,5],[51,0,51,4],[21,1,21,2],[22,1,22,2],[8,0,8,2],[8,3,8,5],[9,0,9,2],[9,3,9,5],[10,0,10,2],[10,3,10,5],[11,0,11,2],[11,3,11,5],[17,0,17,2],[17,3,17,5],[12,0,12,2],[12,3,12,5]]}
[]
["Az űrlap másolható, alakját és tartalmát kérjük, ne változtassa meg!"]
[]
[]
["Elszámolt költségek összesítő"]
[]
["Számviteli bizonylat a(z) ……………...számú támogatói okiratban foglalt források felhasználásának elszámolásához"]
["A bizonylat formájára és tartalmára a számvitelről szóló 2000. évi C. törvény előírásai az irányadók"]
["Kedvezményezett:",null,null,"Támogatást nyújtó:"]
[null,null,null,"Nemzeti Kutatási, Fejlesztési és Innovációs Hivatal"]
["Kedvezményezett intézmény neve:………………………………",null,null,"címe: "]
[null,null,null,"Magyar Államkincstárnál vezetett  számla"]
["címe: ……………………………………………………",null,null,"Megnevezése:  "]
["Adóazonosító száma: …………………………………",null,null," Nemzeti Kutatási, Fejlesztési és Innovációs Alap, Előirányzat-felhasználási keretszámla: "]
["Pénzintézet: ………………………………………..…..",null,null,"száma:"]
[null,null,null,"10032000-00334806-00000000"]
["Pénzforgalmi jelzőszáma:",null,null,"AHT azonosító:  "]
["………………………………………………..………..",null,null,348962]
["Teljesítés időpontja: (*)",null,"Bizonylat kelte:","Elszámolási bizonylat sorszáma: (**)"]
["         év        hó       nap",null,"         év        hó       nap"]
["Tevékenység ","Költség fajta (Ft-ban)",null,"Támogatás (Ft)"]
["Ösztöndíj","55. Személyi jellegű egyéb kifizetések - egyéb",null,{"$f":"'Ösztöndíj összesítő'!D16","v":0}]
["Kutatással összefüggő","11. Immateriális javak"]
[null,"13. Műszaki berendezések, gépek, járművek"]
[null,"14. Egyéb berendezések, gépek, járművek"]
[null,"51. Anyagköltség"]
[null,"52. Igénybe vett szolgáltatások költségei"]
[null,"53. Egyéb szolgáltatások költségei"]
["Lebonyolítási","11. Immateriális javak"]
[null,"13. Műszaki berendezések, gépek, járművek"]
[null,"14. Egyéb berendezések, gépek, járművek"]
[null,"51. Anyagköltség"]
[null,"52. Igénybe vett szolgáltatások költségei"]
[null,"53. Egyéb szolgáltatások költségei"]
[null,"54. Bérköltség - egyéb"]
[null,"55. Személyi jellegű egyéb kifizetések - egyéb"]
[null,"56. Bérjárulék - egyéb"]
[null,"51. Anyagköltség - Általános költség",null,{"$f":"'Általános-51.Anyagkölt'!L25","v":0}]
[null,"52. Igénybe vett szolgáltatások költségei - Általános költség",null,{"$f":"'Általános-52.Igénybe vett'!L25","v":0}]
["Összes költség ",null,null,{"$f":"SUM(D22:F39)","v":0}]
[]
[]
["Elszámolt támogatás összesen: ………………………Ft, azaz ………………………………………………Ft"]
[]
[]
["Kedvezményezett intézmény cégszerű aláírás (***)\n\n ……………………………………………………………………",null,null,"PH."]
[]
[]
[]
[]
["* Az adott elszámolási időszak vége."]
["** Javasolt időszakhoz köthető sorszámot megadni. Pl. (xxxx -1/2020)"]
["*** Az aláírók nevét nyomtatott betűkkel is kérjük kitölteni."]

{"sheet":"Ösztöndíj összesítő","index":1,"n_rows":23,"n_cols":4,"rows_kept":23,"cut":false,"hidden":false,"merged":[[19,2,19,5],[20,2,20,6],[4,0,4,1],[4,2,4,3],[7,0,8,0],[7,1,8,1],[0,0,0,3],[1,0,1,3],[2,0,2,1],[2,2,2,3],[3,0,3,1],[3,2,3,3]]}
["2020/2021. évi Új Nemzeti Kiválóság Program"]
["ÖSZTÖNDÍJ ÖSSZESÍTŐ"]
["Kedvezményezett intézmény neve:"]
["Támogatói okirat száma:"]
["Az elszámolással érintett időszak kezdete és vége:"]
[]
["Támogatási KERET","A Támogató által MEGÍTÉLT intézményi ÚNKP támogatási keret                   (Ft)*","Ösztöndíj neve","Ösztöndíj összege (Ft)"]
["\"A\" KERET",null,"Felsőoktatási Alapképzés Hallgatói Kutatói Ösztöndíj",{"$f":"'\"A\" KERET - ALAPK. HALLGATÓK'!H19","v":0}]
[null,null,"Felsőoktatási Mesterképzés Hallgatói Kutatói Ösztöndíj",{"$f":"'\"A\" KERET - MESTERK. HALLGATÓK'!H19","v":0}]
[null,null,"Összesen\"A\" keret:",{"$f":"D8+D9","v":0}]
["\"B\" KERET",null,"Felsőoktatási Doktori Hallgatói Kutatói Ösztöndíj",{"$f":"'\"B\" KERET - DOKTORI'!H19","v":0}]
["\"C\" KERET",null,"\"Tudománnyal fel!\" Felsőoktatási Doktorvárományosi és Posztdoktori Kutatói Ösztöndíj",{"$f":"'\"C\" KERET - \"TUDOMÁNNYAL FEL!\"'!H19","v":0}]
["-",null,"\"A\" ÉS \"B\" \"C\" KERET ÖSSZESEN:",{"$f":"D10+D11+D12","v":0}]
["-",null,"Bolyai+ Felsőoktatási Fiatal Oktatói, Kutatói Ösztöndíj forrásigénye",{"$f":"'BOLYAI+'!H19","v":0}]
["-",null,"„Tehetséggel fel!” Felsőoktatást Megkezdő Kutatói Ösztöndíj forrásigénye",{"$f":"'\"TEHETSÉGGEL FEL!\"'!H19","v":0}]
["-",null,"ÖSSZESEN:",{"$f":"D13+D14+D15","v":0}]
[]
[]
[]
["Budapest, 2021.",null," ……………………………………"]
[null,null,"Kedvezményezett intézmény cégszerű aláírása*"]
["* Az aláírók nevét nyomtatott betűkkel is kérjük kitölteni."]
[null,null,"Ph."]

{"sheet":"\"A\" KERET - ALAPK. HALLGATÓK","index":2,"n_rows":22,"n_cols":8,"rows_kept":22,"cut":false,"hidden":false,"merged":[[5,6,6,6],[21,0,21,7],[0,0,0,7],[1,0,1,7],[2,0,2,1],[2,2,2,7],[3,0,3,1],[3,2,3,7],[18,1,18,5],[4,0,4,1],[4,2,4,7],[5,0,6,0],[5,1,6,1],[5,2,6,2],[5,3,6,3],[5,4,5,5],[5,7,6,7]]}
["2020/2021. évi Új Nemzeti Kiválóság Program  - \"A\" támogatási keret*"]
["Felsőoktatási Alapképzés Hallgatói Kutatói Ösztöndíj"]
["Kedvezményezett intézmény neve:"]
["Támogatói okirat száma:"]
["Az elszámolással érintett időszak kezdete és vége:"]
["Sorszám","Ösztöndíjas neve","Az ösztöndíjas időszak hossza hónap","A havi ösztöndíj összege                        (Ft)","Az ösztöndíjas időszak",null,"Pénzügyi teljesítés időpontja*","Elszámolt ösztöndíj (Ft)"]
[{"$nulls":4},"kezdete (dátum)","vége (dátum)"]
[1,null,null,null,"2019-09-01","2020-01-31"]
[2,null,null,null,"2020-02-01","2020-06-30",null,0]
[3]
[4]
[5]
[6]
[7]
[8]
[9]
[10]
[11]
["Összesen:",{"$nulls":6},{"$f":"SUM(H8:H18)","v":0}]
[]
[]
["*Amennyiben az ÚNKP ösztöndíjas részére megítélt ösztöndíj havonta, vagy több részletben került kifizetésre, úgy kifizetésenként külön sorban szükséges felvinni."]

{"sheet":"\"A\" KERET - MESTERK. HALLGATÓK","index":3,"n_rows":21,"n_cols":8,"rows_kept":21,"cut":false,"hidden":false,"merged":[[5,6,6,6],[20,0,20,7],[0,0,0,7],[1,0,1,7],[2,0,2,1],[2,2,2,7],[3,0,3,1],[3,2,3,7],[18,1,18,5],[4,0,4,1],[4,2,4,7],[5,0,6,0],[5,1,6,1],[5,2,6,2],[5,3,6,3],[5,4,5,5],[5,7,6,7]]}
["2020/2021. évi Új Nemzeti Kiválóság Program  - \"A\" támogatási keret*"]
["Felsőoktatási Mesterképzés (osztatlan) Hallgatói Kutatói Ösztöndíj"]
["Kedvezményezett intézmény neve:"]
["Támogatói okirat száma:"]
["Az elszámolással érintett időszak kezdete és vége:"]
["Sorszám","Ösztöndíjas neve","Az ösztöndíjas időszak hossza (hónap)","A havi ösztöndíj összege                        (Ft)","Az ösztöndíjas időszak",null,"Pénzügyi teljesítés időpontja*","Projektre elszámolt ösztöndíj (Ft)"]
[{"$nulls":4},"kezdete (dátum)","vége (dátum)"]
[1,null,null,null,"2019-09-01","2020-01-31",null,0]
[2,null,null,null,"2020-02-01","2020-06-30"]
[3]
[4]
[5]
[6]
[7]
[8]
[9]
[10]
[11]
["Összesen:",{"$nulls":6},{"$f":"SUM(H8:H18)","v":0}]
[]
["*Amennyiben az ÚNKP ösztöndíjas részére megítélt ösztöndíj havonta, vagy több részletben került kifizetésre, úgy kifizetésenként külön sorban szükséges felvinni."]

{"sheet":"\"B\" KERET - DOKTORI","index":4,"n_rows":22,"n_cols":8,"rows_kept":22,"cut":false,"hidden":false,"merged":[[5,6,6,6],[21,0,21,7],[0,0,0,7],[1,0,1,7],[2,0,2,1],[2,2,2,7],[3,0,3,1],[3,2,3,7],[18,1,18,5],[4,0,4,1],[4,2,4,7],[5,0,6,0],[5,1,6,1],[5,2,6,2],[5,3,6,3],[5,4,5,5],[5,7,6,7]]}
["2020/2021. évi Új Nemzeti Kiválóság Program  - \"B\" támogatási keret*"]
["Felsőoktatási Doktori Hallgatói Kutatói Ösztöndíj"]
["Kedvezményezett intézmény neve:"]
["Támogatói okirat száma:"]
["Az elszámolással érintett időszak kezdete és vége:"]
["Sorszám","Ösztöndíjas neve","Az ösztöndíjas időszak hossza (hónap)","A havi ösztöndíj összege                        (Ft)","Az ösztöndíjas időszak",null,"Pénzügyi teljesítés időpontja*","Projektre elszámolt ösztöndíj (Ft)"]
[{"$nulls":4},"kezdete (dátum)","vége (dátum)"]
[1,null,null,null,"2019-09-01","2020-01-31"]
[2,null,null,null,"2020-02-01","2020-06-30"]
[3]
[4]
[5]
[6]
[7]
[8]
[9]
[10]
[11]
["Összesen:",{"$nulls":6},{"$f":"SUM(H8:H18)","v":0}]
[]
[]
["*Amennyiben az ÚNKP ösztöndíjas részére megítélt ösztöndíj havonta, vagy több részletben került kifizetésre, úgy kifizetésenként külön sorban szükséges felvinni."]

{"sheet":"\"C\" KERET - \"TUDOMÁNNYAL FEL!\"","index":5,"n_rows":21,"n_cols":8,"rows_kept":21,"cut":false,"hidden":false,"merged":[[5,6,6,6],[20,0,20,7],[0,0,0,7],[1,0,1,7],[2,0,2,1],[2,2,2,7],[3,0,3,1],[3,2,3,7],[18,1,18,5],[4,0,4,1],[4,2,4,7],[5,0,6,0],[5,1,6,1],[5,2,6,2],[5,3,6,3],[5,4,5,5],[5,7,6,7]]}
["2020/2021. évi Új Nemzeti Kiválóság Program   - \"C\" támogatási keret*"]
["\"Tudománnyal fel!\" Felsőoktatási Doktorvárományosi és Posztdoktori Kutatói Ösztöndíj"]
["Kedvezményezett intézmény neve:"]
["Támogatói okirat száma:"]
["Az elszámolással érintett időszak kezdete és vége:"]
["Sorszám","Ösztöndíjas neve","Az ösztöndíjas időszak hossza (hónap)","A havi ösztöndíj összege                        (Ft)","Az ösztöndíjas időszak",null,"Pénzügyi teljesítés időpontja*","Projektre elszámolt ösztöndíj (Ft)"]
[{"$nulls":4},"kezdete (dátum)","vége (dátum)"]
[1,null,null,null,"2019-09-01","2020-01-31"]
[2,null,null,null,"2020-02-01","2020-06-30"]
[3]
[4]
[5]
[6]
[7]
[8]
[9]
[10]
[11]
["Összesen:",{"$nulls":6},{"$f":"SUM(H8:H18)","v":0}]
[]
["*Amennyiben az ÚNKP ösztöndíjas részére megítélt ösztöndíj havonta, vagy több részletben került kifizetésre, úgy kifizetésenként külön sorban szükséges felvinni."]

{"sheet":"BOLYAI+","index":6,"n_rows":21,"n_cols":8,"rows_kept":21,"cut":false,"hidden":false,"merged":[[5,6,6,6],[20,0,20,7],[0,0,0,7],[1,0,1,7],[2,0,2,1],[2,2,2,7],[3,0,3,1],[3,2,3,7],[18,1,18,5],[4,0,4,1],[4,2,4,7],[5,0,6,0],[5,1,6,1],[5,2,6,2],[5,3,6,3],[5,4,5,5],[5,7,6,7]]}
["2020/2021. évi Új Nemzeti Kiválóság Program "]
["Bolyai+ Felsőoktatási Fiatal Oktatói, Kutatói Ösztöndíj "]
["Kedvezményezett intézmény neve:"]
["Támogatói okirat száma:"]
["Az elszámolással érintett időszak kezdete és vége:"]
["Sorszám","Ösztöndíjas neve","Az ösztöndíjas időszak hossza (hónap)","A havi ösztöndíj összege                        (Ft)","Az ösztöndíjas időszak",null,"Pénzügyi teljesítés időpontja*","Projektre elszámolt ösztöndíj (Ft)"]
[{"$nulls":4},"kezdete (dátum)","vége (dátum)"]
[1,null,null,null,"2019-09-01","2020-01-31"]
[2,null,null,null,"2020-02-01","2020-06-30"]
[3]
[4]
[5]
[6]
[7]
[8]
[9]
[10]
[11]
["Összesen:",{"$nulls":6},{"$f":"SUM(H8:H18)","v":0}]
[]
["*Amennyiben az ÚNKP ösztöndíjas részére megítélt ösztöndíj havonta, vagy több részletben került kifizetésre, úgy kifizetésenként külön sorban szükséges felvinni."]

{"sheet":"\"TEHETSÉGGEL FEL!\"","index":7,"n_rows":21,"n_cols":8,"rows_kept":21,"cut":false,"hidden":false,"merged":[[5,6,6,6],[20,0,20,7],[0,0,0,7],[1,0,1,7],[2,0,2,1],[2,2,2,7],[3,0,3,1],[3,2,3,7],[18,1,18,5],[4,0,4,1],[4,2,4,7],[5,0,6,0],[5,1,6,1],[5,2,6,2],[5,3,6,3],[5,4,5,5],[5,7,6,7]]}
["2020/2021. évi Új Nemzeti Kiválóság Program "]
["„Tehetséggel fel!” Felsőoktatást Megkezdő Kutatói Ösztöndíj"]
["Kedvezményezett intézmény neve:"]
["Támogatói okirat száma:"]
["Az elszámolással érintett időszak kezdete és vége:"]
["Sorszám","Ösztöndíjas neve","Az ösztöndíjas időszak hossza (hónap)","A havi ösztöndíj összege                        (Ft)","Az ösztöndíjas időszak",null,"Pénzügyi teljesítés időpontja*","Projektre elszámolt ösztöndíj (Ft)"]
[{"$nulls":4},"kezdete (dátum)","vége (dátum)"]
[1,null,null,null,"2019-09-01","2020-01-31"]
[2,null,null,null,"2020-02-01","2020-06-30"]
[3]
[4]
[5]
[6]
[7]
[8]
[9]
[10]
[11]
["Összesen:",{"$nulls":6},{"$f":"SUM(H8:H18)","v":0}]
[]
["*Amennyiben az ÚNKP ösztöndíjas részére megítélt ösztöndíj havonta, vagy több részletben került kifizetésre, úgy kifizetésenként külön sorban szükséges felvinni."]

{"sheet":"51. Anyagköltségek","index":8,"n_rows":28,"n_cols":13,"rows_kept":28,"cut":false,"hidden":false,"merged":[[4,0,4,12],[6,0,7,0],[6,1,7,1],[6,2,7,2],[6,3,7,3],[6,4,7,4],[6,5,7,5],[6,6,7,6],[2,3,2,12],[1,3,1,12],[0,3,0,12],[0,0,0,2],[1,0,1,2],[2,0,2,2],[27,0,27,12],[6,7,7,7],[6,8,6,10],[24,0,24,12],[6,12,7,12],[6,11,7,11],[14,0,14,7],[25,0,25,7]]}
["Kedvezményezett intézmény neve:"]
["Támogatói okirat száma:"]
["Az elszámolással érintett időszak kezdete és vége:"]
[]
["51. Anyagköltségek"]
[]
["Sor-szám","Számviteli bizonylat kiállítójának neve","Adószáma","Számviteli bizonylat sorszáma","Kiállítás kelte","Teljesítés dátuma","Pénzügyi teljesítés időpontja","Gazdasági esemény rövid leírása (utazás időtartama, helye, utazó neve)","Összege (Ft)",null,null,"Projekt terhére elszámolt költségek (Ft)","Tevékenység"]
["szám",{"$nulls":7},"Bruttó","Nettó","ÁFA"]
["1.",{"$nulls":11},"Kutatással összefüggő"]
["2."]
[]
[]
[]
[]
["Kutatással összefüggő összesen",{"$nulls":11},"-"]
[{"$nulls":12},"Lebonyolítási"]
{"$rows_empty":9}
["Lebonyolitási összesen"]
[]
["A jelen táblázatban összesített számlák és bizonylatok a jelen támogatás igénylés benyújtását megelőzően szakmailag és pénzügyileg teljesítésre kerültek, a projektben történő felhasználás mértéke erejéig kerültek elszámolásra.\nA Kedvezményezett tudomásul veszi, hogy jelen melléklet szerinti számlaösszesítő táblázatok befogadása nem jelenti egyben a táblázatok tartalmának pénzügyi elfogadását, ugyanakkor a számlaösszesítő táblázatok kitöltéséért teljeskörű felelősséggel tartozik. "]

{"sheet":"52. Igénybe vett szolg.","index":9,"n_rows":27,"n_cols":13,"rows_kept":27,"cut":false,"hidden":false,"merged":[[0,0,0,2],[0,3,0,12],[1,0,1,2],[1,3,1,12],[2,0,2,2],[2,3,2,12],[4,0,4,12],[6,0,7,0],[6,1,7,1],[6,2,7,2],[6,3,7,3],[6,4,7,4],[6,5,7,5],[6,6,7,6],[6,7,7,7],[6,8,6,10],[6,11,7,11],[6,12,7,12],[23,0,23,12],[26,0,26,12],[14,0,14,7],[24,0,24,7]]}
["Kedvezményezett intézmény neve:"]
["Támogatói okirat száma:"]
["Az elszámolással érintett időszak kezdete és vége:"]
[]
["52. Igénybe vett szolgáltatások"]
[]
["Sor-szám","Számviteli bizonylat kiállítójának neve","Adószáma","Számviteli bizonylat sorszáma","Kiállítás kelte","Teljesítés dátuma","Pénzügyi teljesítés időpontja","Gazdasági esemény rövid leírása (utazás időtartama, helye, utazó neve)","Összege (Ft)",null,null,"Projekt terhére elszámolt költségek (Ft)","Tevékenység"]
["szám",{"$nulls":7},"Bruttó","Nettó","ÁFA"]
["1.",{"$nulls":11},"Kutatással összefüggő"]
["2.",{"$nulls":11},"Kutatással összefüggő"]
[{"$nulls":12},"Kutatással összefüggő"]
[{"$nulls":12},"Kutatással összefüggő"]
[]
[]
["Kutatással összefüggő összesen",{"$nulls":11},"-"]
[{"$nulls":12},"Lebonyolítási"]
[{"$nulls":12},"Lebonyolítási"]
{"$rows_empty":7}
["Lebonyolitási összesen"]
[]
["A jelen táblázatban összesített számlák és bizonylatok a jelen támogatás igénylés benyújtását megelőzően szakmailag és pénzügyileg teljesítésre kerültek, a projektben történő felhasználás mértéke erejéig kerültek elszámolásra.\nA Kedvezményezett tudomásul veszi, hogy jelen melléklet szerinti számlaösszesítő táblázatok befogadása nem jelenti egyben a táblázatok tartalmának pénzügyi elfogadását, ugyanakkor a számlaösszesítő táblázatok kitöltéséért teljeskörű felelősséggel tartozik. "]

{"sheet":"53. Egyéb szolgáltatások","index":10,"n_rows":27,"n_cols":13,"rows_kept":27,"cut":false,"hidden":false,"merged":[[0,0,0,2],[0,3,0,12],[1,0,1,2],[1,3,1,12],[2,0,2,2],[2,3,2,12],[4,0,4,12],[6,0,7,0],[6,1,7,1],[6,2,7,2],[6,3,7,3],[6,4,7,4],[6,5,7,5],[6,6,7,6],[6,7,7,7],[6,8,6,10],[6,11,7,11],[6,12,7,12],[23,0,23,12],[26,0,26,12],[14,0,14,7],[24,0,24,7]]}
["Kedvezményezett intézmény neve:"]
["Támogatói okirat száma:"]
["Az elszámolással érintett időszak kezdete és vége:"]
[]
["53. Egyéb szolgáltatások"]
[]
["Sor-szám","Számviteli bizonylat kiállítójának neve","Adószáma","Számviteli bizonylat sorszáma","Kiállítás kelte","Teljesítés dátuma","Pénzügyi teljesítés időpontja","Gazdasági esemény rövid leírása (utazás időtartama, helye, utazó neve)","Összege (Ft)",null,null,"Projekt terhére elszámolt költségek (Ft)","Tevékenység"]
["szám",{"$nulls":7},"Bruttó","Nettó","ÁFA"]
["1.",{"$nulls":11},"Kutatással összefüggő"]
["2."]
[]
[]
[]
[]
["Kutatással összefüggő összesen",{"$nulls":11},"-"]
[{"$nulls":12},"Lebonyolítási"]
{"$rows_empty":8}
["Lebonyolitási összesen"]
[]
["A jelen táblázatban összesített számlák és bizonylatok a jelen támogatás igénylés benyújtását megelőzően szakmailag és pénzügyileg teljesítésre kerültek, a projektben történő felhasználás mértéke erejéig kerültek elszámolásra.\nA Kedvezményezett tudomásul veszi, hogy jelen melléklet szerinti számlaösszesítő táblázatok befogadása nem jelenti egyben a táblázatok tartalmának pénzügyi elfogadását, ugyanakkor a számlaösszesítő táblázatok kitöltéséért teljeskörű felelősséggel tartozik. "]

{"sheet":"54-56.személyi+járulék-lebony.","index":11,"n_rows":29,"n_cols":12,"rows_kept":29,"cut":false,"hidden":false,"merged":[[0,0,0,2],[1,0,1,2],[2,0,2,2],[2,3,2,11],[1,3,1,11],[0,3,0,11],[4,0,4,11],[6,2,6,3],[6,4,7,4],[6,5,7,5],[6,6,7,6],[6,7,7,7],[6,8,7,8],[6,9,7,9],[6,10,7,10],[6,11,7,11],[31,0,31,11],[24,0,24,11],[25,0,25,6],[28,0,28,11],[30,0,30,11]]}
["Kedvezményezett intézmény neve:"]
["Támogatói okirat száma:"]
["Az elszámolással érintett időszak kezdete és vége:"]
[]
["54-56. BÉRKÖLTSÉG, SZEMÉLYI JELLEGŰ EGYÉB KIFIZETÉSEK ÉS BÉRJÁRULÉKOK"]
[]
["Projektben résztvevő dolgozók",null,"Az elszámolt időszak",null,"Az adott hónapban a projektre elszámolt órák száma","Pénzügyi teljesítés időpontja","Állandó dolgozó (Á), vagy megbí-zásos dolgozó (M)  (legördülő menű)","Kinevezésben/Megbízási szerződésben megállapított Bruttó bér","Projektre elszámolt bruttó bér (Ft)","Projektre elszámolt egyéb juttatások (Ft)","Projektre elszámolt bruttó bér és juttatások összesen (Ft)","Projektre elszámolt bruttó bér járuléka (Ft)"]
["neve","státusza \n","kezdete (dátum)","vége (dátum)"]
{"$rows_empty":17}
["Összesen:",{"$nulls":6},{"$f":"SUM(H9:H24)","v":0},0,0,{"$f":"SUM(K9:K24)","v":0},0]
[]
[]
["A jelen táblázatban összesített, a munkavállalóknak kifizetett nettó jövedelem, illetve a munkavállalót és a munkáltatót terhelő adók, járulékok a  jelen támogatás igénylést megelőzően kifizetésre kerültek. Büntetőjogi felelősségem tudatában nyilatkozom hogy a fenti adatok a valóságnak megfelelnek, hitelesek, továbbá, hogy az illetmények számfejtésének és kifizetésének a bizonylatai, valamint a számfejtés alapját képező teljesítésigazolások és a munka- vagy megbízási szerződések a Kedvezményezettnél megtalálhatóak. "]

{"sheet":"11. Immateriális javak","index":12,"n_rows":29,"n_cols":17,"rows_kept":29,"cut":false,"hidden":false,"merged":[[28,0,28,16],[25,0,25,16],[6,11,7,11],[6,0,7,0],[6,1,7,1],[6,16,7,16],[6,3,7,3],[6,5,7,5],[6,10,7,10],[6,12,6,14],[6,4,7,4],[6,6,7,6],[6,8,6,9],[6,7,7,7],[6,15,7,15],[26,0,26,7],[15,0,15,11],[0,0,0,2],[1,0,1,2],[6,2,7,2],[2,3,2,16],[1,3,1,16],[0,3,0,16],[4,0,4,16],[2,0,2,2]]}
["Kedvezményezett intézmény neve:"]
["Támogatói okirat száma:"]
["Az elszámolással érintett időszak kezdete és vége:"]
[]
["11. Immateriális javak"]
[]
["Sor-szám","Számviteli bizonylat kiállítójának neve","Adószáma","Számviteli bizonylat sorszáma","Kiállítás kelte","Teljesítés dátuma","Pénzügyi teljesítés időpontja","amortizá-ciót számol el  (igen / nem) (legör-dülő menü)","Amortizáció esetén az elszámolt időszak",null,"amortizá-ciós kulcs %","Gazdasági esemény rövid leírása","Összege (Ft)",null,null,"Projekt terhére elszámolt költségek (Ft)","Tevékenység"]
["szám",{"$nulls":6}," (igen / nem)","kezdete (dátum)","vége (dátum)",null,null,"Bruttó","Nettó","ÁFA"]
["1.",{"$nulls":6},"igen",{"$nulls":8},"Kutatással összefüggő"]
["2.",{"$nulls":6},"nem"]
[]
[]
[]
[]
[]
["Kutatással összefüggő összesen",{"$nulls":15},"-"]
[{"$nulls":16},"Lebonyolítási"]
{"$rows_empty":9}
["Lebonyolitási összesen"]
[]
["A jelen táblázatban összesített számlák és bizonylatok a jelen támogatás igénylés benyújtását megelőzően szakmailag és pénzügyileg teljesítésre kerültek, a projektben történő felhasználás mértéke erejéig kerültek elszámolásra.\nA Kedvezményezett tudomásul veszi, hogy jelen melléklet szerinti számlaösszesítő táblázatok befogadása nem jelenti egyben a táblázatok tartalmának pénzügyi elfogadását, ugyanakkor a számlaösszesítő táblázatok kitöltéséért teljeskörű felelősséggel tartozik. "]

{"sheet":"13. Műszaki berend.","index":13,"n_rows":29,"n_cols":17,"rows_kept":29,"cut":false,"hidden":false,"merged":[[0,0,0,2],[0,3,0,16],[1,0,1,2],[1,3,1,16],[2,0,2,2],[2,3,2,16],[4,0,4,16],[6,0,7,0],[6,1,7,1],[6,2,7,2],[6,3,7,3],[6,4,7,4],[6,5,7,5],[6,6,7,6],[6,7,7,7],[6,8,6,9],[26,0,26,11],[28,0,28,16],[15,0,15,11],[6,10,7,10],[6,11,7,11],[6,12,6,14],[6,15,7,15],[6,16,7,16],[25,0,25,16]]}
["Kedvezményezett intézmény neve:"]
["Támogatói okirat száma:"]
["Az elszámolással érintett időszak kezdete és vége:"]
[]
["13. Műszaki berendezések, gépek járművek"]
[]
["Sor-szám","Számviteli bizonylat kiállítójának neve","Adószáma","Számviteli bizonylat sorszáma","Kiállítás kelte","Teljesítés dátuma","Pénzügyi teljesítés időpontja","amortizá-ciót számol el  (igen / nem) (legör-dülő menü)","Amortizáció esetén az elszámolt időszak",null,"amortizá-ciós kulcs %","Gazdasági esemény rövid leírása","Összege (Ft)",null,null,"Projekt terhére elszámolt költségek (Ft)","Tevékenység"]
["szám",{"$nulls":6}," (igen / nem)","kezdete (dátum)","vége (dátum)",null,null,"Bruttó","Nettó","ÁFA"]
["1.",{"$nulls":6},"igen",{"$nulls":8},"Kutatással összefüggő"]
["2.",{"$nulls":6},"nem"]
[]
[]
[]
[]
[]
["Kutatással összefüggő összesen",{"$nulls":15},"-"]
[{"$nulls":16},"Lebonyolítási"]
{"$rows_empty":9}
["Lebonyolitási összesen"]
[]
["A jelen táblázatban összesített számlák és bizonylatok a jelen támogatás igénylés benyújtását megelőzően szakmailag és pénzügyileg teljesítésre kerültek, a projektben történő felhasználás mértéke erejéig kerültek elszámolásra.\nA Kedvezményezett tudomásul veszi, hogy jelen melléklet szerinti számlaösszesítő táblázatok befogadása nem jelenti egyben a táblázatok tartalmának pénzügyi elfogadását, ugyanakkor a számlaösszesítő táblázatok kitöltéséért teljeskörű felelősséggel tartozik. "]

{"sheet":"14. Egyéb berendezések","index":14,"n_rows":29,"n_cols":17,"rows_kept":29,"cut":false,"hidden":false,"merged":[[0,0,0,2],[0,3,0,16],[1,0,1,2],[1,3,1,16],[2,0,2,2],[2,3,2,16],[4,0,4,16],[6,0,7,0],[6,1,7,1],[6,2,7,2],[6,3,7,3],[6,4,7,4],[6,5,7,5],[6,6,7,6],[6,7,7,7],[6,8,6,9],[26,0,26,11],[28,0,28,16],[15,0,15,11],[6,10,7,10],[6,11,7,11],[6,12,6,14],[6,15,7,15],[6,16,7,16],[25,0,25,16]]}
["Kedvezményezett intézmény neve:"]
["Támogatói okirat száma:"]
["Az elszámolással érintett időszak kezdete és vége:"]
[]
["14. Egyéb berendezések, gépek, járművek"]
[]
["Sor-szám","Számviteli bizonylat kiállítójának neve","Adószáma","Számviteli bizonylat sorszáma","Kiállítás kelte","Teljesítés dátuma","Pénzügyi teljesítés időpontja","amortizá-ciót számol el  (igen / nem) (legör-dülő menü)","Amortizáció esetén az elszámolt időszak",null,"amortizá-ciós kulcs %","Gazdasági esemény rövid leírása","Összege (Ft)",null,null,"Projekt terhére elszámolt költségek (Ft)","Tevékenység"]
["szám",{"$nulls":6}," (igen / nem)","kezdete (dátum)","vége (dátum)",null,null,"Bruttó","Nettó","ÁFA"]
["1.",{"$nulls":6},"igen",{"$nulls":8},"Kutatással összefüggő"]
["2.",{"$nulls":6},"nem"]
[]
[]
[]
[]
[]
["Kutatással összefüggő összesen",{"$nulls":15},"-"]
[{"$nulls":16},"Lebonyolítási"]
{"$rows_empty":9}
["Lebonyolitási összesen"]
[]
["A jelen táblázatban összesített számlák és bizonylatok a jelen támogatás igénylés benyújtását megelőzően szakmailag és pénzügyileg teljesítésre kerültek, a projektben történő felhasználás mértéke erejéig kerültek elszámolásra.\nA Kedvezményezett tudomásul veszi, hogy jelen melléklet szerinti számlaösszesítő táblázatok befogadása nem jelenti egyben a táblázatok tartalmának pénzügyi elfogadását, ugyanakkor a számlaösszesítő táblázatok kitöltéséért teljeskörű felelősséggel tartozik. "]

{"sheet":"Általános-51.Anyagkölt","index":15,"n_rows":27,"n_cols":12,"rows_kept":27,"cut":false,"hidden":false,"merged":[[26,0,26,11],[4,0,4,11],[6,0,7,0],[6,1,7,1],[6,2,7,2],[6,3,7,3],[6,4,7,4],[6,5,7,5],[6,6,7,6],[0,3,0,11],[1,3,1,11],[2,3,2,11],[0,0,0,2],[1,0,1,2],[2,0,2,2],[24,0,24,6],[6,7,7,7],[6,8,6,10],[23,0,23,11],[6,11,7,11]]}
["Kedvezményezett intézmény neve:"]
["Támogatói okirat száma:"]
["Az elszámolással érintett időszak kezdete és vége:"]
[]
["ÁLTALÁNOS KÖLTSÉGEK - 51. Anyagköltségek"]
[]
["Sor-szám","Számviteli bizonylat kiállítójának neve","Adószáma","Számviteli bizonylat sorszáma","Kiállítás kelte","Teljesítés dátuma","Pénzügyi teljesítés időpontja","Gazdasági esemény rövid leírása","Összege (Ft)",null,null,"Projekt terhére elszámolt költségek (Ft)"]
["szám",{"$nulls":7},"Bruttó","Nettó","ÁFA"]
{"$rows_empty":16}
[" Összesen",{"$nulls":6},{"$f":"SUM(H9:H23)","v":0},0,0,0,0]
[]
["A jelen táblázatban összesített számlák és bizonylatok a jelen támogatás igénylés benyújtását megelőzően szakmailag és pénzügyileg teljesítésre kerültek, a projektben történő felhasználás mértéke erejéig kerültek elszámolásra.\nA Kedvezményezett tudomásul veszi, hogy jelen melléklet szerinti számlaösszesítő táblázatok befogadása nem jelenti egyben a táblázatok tartalmának pénzügyi elfogadását, ugyanakkor a számlaösszesítő táblázatok kitöltéséért teljeskörű felelősséggel tartozik. "]

{"sheet":"Általános-52.Igénybe vett","index":16,"n_rows":27,"n_cols":12,"rows_kept":27,"cut":false,"hidden":false,"merged":[[0,0,0,2],[0,3,0,11],[1,0,1,2],[1,3,1,11],[2,0,2,2],[2,3,2,11],[6,11,7,11],[23,0,23,11],[24,0,24,6],[26,0,26,11],[4,0,4,11],[6,0,7,0],[6,1,7,1],[6,2,7,2],[6,3,7,3],[6,4,7,4],[6,5,7,5],[6,6,7,6],[6,7,7,7],[6,8,6,10]]}
["Kedvezményezett intézmény neve:"]
["Támogatói okirat száma:"]
["Az elszámolással érintett időszak kezdete és vége:"]
[]
["ÁLTALÁNOS KÖLTSÉGEK - 52. Igénybevett szolgáltatások"]
[]
["Sor-szám","Számviteli bizonylat kiállítójának neve","Adószáma","Számviteli bizonylat sorszáma","Kiállítás kelte","Teljesítés dátuma","Pénzügyi teljesítés időpontja","Gazdasági esemény rövid leírása","Összege (Ft)",null,null,"Projekt terhére elszámolt költségek (Ft)"]
["szám",{"$nulls":7},"Bruttó","Nettó","ÁFA"]
{"$rows_empty":16}
[" Összesen",{"$nulls":6},{"$f":"SUM(H9:H23)","v":0},0,0,0,0]
[]
["A jelen táblázatban összesített számlák és bizonylatok a jelen támogatás igénylés benyújtását megelőzően szakmailag és pénzügyileg teljesítésre kerültek, a projektben történő felhasználás mértéke erejéig kerültek elszámolásra.\nA Kedvezményezett tudomásul veszi, hogy jelen melléklet szerinti számlaösszesítő táblázatok befogadása nem jelenti egyben a táblázatok tartalmának pénzügyi elfogadását, ugyanakkor a számlaösszesítő táblázatok kitöltéséért teljeskörű felelősséggel tartozik. "]

{"sheet":"támogatás típusai","index":17,"n_rows":24,"n_cols":3,"rows_kept":24,"cut":false,"hidden":true,"merged":[[1,1,1,2],[4,2,6,2],[8,2,11,2],[14,2,15,2]]}
[]
["támogatás típus rövídítése","támogatás típusa"]
[]
["K+F/Alap.","Alapkutatás","Kutatás-fejlesztési projekthez nyújtott támogatás "]
["K+F/Alkalm.","Alkalmazott (ipari) kutatás"]
["K+F/Kis.fejl.","Kísérleti fejlesztés"]
["K+F/Mv tan.","Megvalósíthatósági tanulmány"]
["D.M./Közbesz.","Közbeszerzés","De minimis támogatás"]
["D.M./Koord.","Koordináció"]
["D.M./Tájék.","Tájékoztatás"]
["D.M./Rezsi","Rezsi"]
["D.M./Egyéb","Egyéb"]
["Kut.infra.- b.r.","Kutatási infrastruktúrához nyújtott beruházási támogatás","Kutatási infrastruktúrához nyújtott beruházási támogatás"]
["I.Klaszter/1","az együttműködés és információmegosztás elősegítésére, illetve a specializált, személyre szabott üzleti szolgáltatás nyújtásának vagy közvetítésének javítására szolgáló klaszterélénkítés","Innovációs klaszterre nyújtott támogatás"]
["I.Klaszter/2","az újabb vállalkozások és szervezetek klaszterhez történő csatlakozása, valamint a klaszter ismertségének növelése érdekében végzett marketingtevékenység"]
["I.Klaszter/3","a klaszter létesítményeinek kezelése; az ismeretmegosztás, kapcsolatépítés és nemzetközi együttműködés támogatására szolgáló képzési programok, műhelytalálkozók és konferenciák szervezése"]
["KKV-innov./1","szabadalmak és egyéb immateriális javak megszerzésének, érvényesítésének és védelmének költségei","KKV-knak nyújtott innovációs támogatás"]
["KKV-innov./2","olyan, kutató-tudásközvetítő szervezettől vagy nagyvállalkozástól kirendelt, magasan képzett munkaerő költségei, aki kutatás-fejlesztési és innovációs tevékenységeken, a kedvezményezettnél újonnan létrehozott munkakörben dolgozik, és nem a személyzet más tagjait helyettesíti"]
["KKV-innov./3","innovációs tanácsadás és támogató szolgáltatások költségei"]
["Elj.és szerv. innov.","Eljárási és szervezési innováció támogatása","Eljárási és szervezési innováció támogatása"]
["KKV-b.r.","KKV-knak nyújtott beruházási támogatás","KKV-knak nyújtott beruházási támogatás"]
["KKV-tan.","A kkv-k részére tanácsadáshoz nyújtott támogatás","A kkv-k részére tanácsadáshoz nyújtott támogatás"]
["KKV-vásár.","A kkv-k vásárokon való részvételéhez nyújtott támogatás","A kkv-k vásárokon való részvételéhez nyújtott támogatás"]
["KKV-együttm.","Az európai területi együttműködési projektekben részt vevő kkv-knál felmerült együttműködési költségekhez nyújtott támogatás","Az európai területi együttműködési projektekben részt vevő kkv-knál felmerült együttműködési költségekhez nyújtott támogatás"]

{"sheet":"nyilatkozat kamatról","index":18,"n_rows":31,"n_cols":2,"rows_kept":31,"cut":false,"hidden":false,"merged":[[7,0,7,1],[15,0,15,1],[30,0,30,1]]}
[]
["Egy példányban kitöltve, eredeti aláírással és bélyegzéssel ellátva kell benyújtani."]
[]
[]
[]
[]
[]
["Nyilatkozat a keletkezett kamatra vonatkozóan"]
[]
[]
[]
["Kedvezményezett intézmény neve"]
["Támogatói okirat száma:"]
["Az elszámolással érintett időszak kezdete és vége:"]
[]
["Alulírott <név>, mint a <Kedvezményezett intézmény neve>  gazdasági vezetője / cégjegyzésre jogosult vezetője nyilatkozom, hogy a fenti azonosító számú program megvalósítása során a bankszámlán keletkezett .................Ft összegű kamat a számviteli nyilvántartásainkban elkülönítetten jelenik meg, az kizárólag a projekt céljára került felhasználásra."]
[]
[]
["Hely, dátum"]
[]
[]
[]
[null,"………………………………"]
[null,"Kedvezményezett intézmény cégszerű aláírása*"]
[null,"aláírása"]
[null,"Ph."]
[]
[]
[]
[]
["* Az aláírók nevét nyomtatott betűkkel is kérjük kitölteni"]

{"sheet":"nyilatkozat függetlenségre","index":19,"n_rows":31,"n_cols":2,"rows_kept":31,"cut":false,"hidden":false,"merged":[[7,0,7,1],[15,0,15,1],[30,0,30,1]]}
[]
["Egy példányban kitöltve, eredeti aláírással és bélyegzéssel ellátva kell benyújtani."]
[]
[]
[]
[]
[]
["Nyilatkozat az összeférhetetlenségre vonatkozóan"]
[]
[]
[]
["Kedvezményezett intézmény neve"]
["Támogatói okirat száma"]
["Az elszámolással érintett időszak kezdete és vége:"]
[]
["Alulírott <név>, mint a <kedvezményezett intézmény megnevezése> gazdasági vezetője/ cégjegyzésre jogosult vezetője nyilatkozom, hogy a fenti azonosító számú Támogatói okirat  alapján finanszírozott program megvalósításához igénybe vett szolgáltatásokra és beszerzésekre megkötött szerződések a szokásos piaci feltételeknek megfelelően, független felek között, a pályázati kiírásban és a hivatkozott támogatási szerződésben, valamint annak mellékleteiben foglalt előírások szerint jöttek létre."]
[]
[]
["Hely, dátum"]
[]
[]
[]
[null,"………………………………"]
[null,"Kedvezményezett intézmény cégszerű *"]
[null,"aláírása"]
[null,"Ph."]
[]
[]
[]
[]
["* Az aláírók nevét nyomtatott betűkkel is kérjük kitölteni"]

{"sheet":" lemondó nyilatkozat","index":20,"n_rows":31,"n_cols":2,"rows_kept":31,"cut":false,"hidden":false,"merged":[[6,0,6,1],[15,0,15,1],[30,0,30,1]]}
[]
["Egy példányban kitöltve, eredeti aláírással és bélyegzéssel ellátva kell benyújtani."]
[]
[]
[]
[]
["Lemondó Nyilatkozat"]
[]
[]
[]
["Kedvezményezett intézmény neve"]
["Támogatói okirat száma"]
["Az elszámolással érintett időszak kezdete és vége:"]
[]
[]
["Alulírott <név>, mint a <kedvezményezett intézmény megnevezése> gazdasági vezetője/cégjegyzésre jogosult vezetője nyilatkozom, hogy a fenti azonosító számú program megvalósításához a megítélt támogatásból összesen <a ténylegesen elszámolt támogatás összege> Ft került felhasználásra. A fennmaradó <a megítélt és a tényleges támogatás különbsége> Ft támogatást a továbbiakban nem kívánom igénybe venni, így arról lemondok. "]
[]
[]
["Hely, dátum"]
[]
[]
[]
[null,"………………………………"]
[null,"Kedvezményezett intézmény cégszerű *"]
[null,"aláírása"]
[null,"Ph."]
[]
[]
[]
[]
["* Az aláírók nevét nyomtatott betűkkel is kérjük kitölteni"]